Department Family,Entity,Date,Expenses Type,Expense Area,Supplier,Transaction Number,,Total
Department of Health,The Christie NHS Foundation Trust,26/06/2014,Drugs,Cancer Centre Services,ALCURA UK LIMITED,0000470733,470733,50444.18
Department of Health,The Christie NHS Foundation Trust,16/06/2014,Drugs,Cancer Centre Services,ALCURA UK LIMITED,0000470799,470799,72335.96
Department of Health,The Christie NHS Foundation Trust,19/06/2014,Drugs,Cancer Centre Services,ALCURA UK LIMITED,0000469456,469456,50571.54
Department of Health,The Christie NHS Foundation Trust,20/06/2014,IT Equipment,Capital,ANS GROUP,0000469164,469164,96183.44
Department of Health,The Christie NHS Foundation Trust,09/06/2014,Drugs,Cancer Centre Services,BAXTER HEALTHCARE LTD,0000469839,469839,256021.33
Department of Health,The Christie NHS Foundation Trust,12/06/2014,Drugs,Cancer Centre Services,BAXTER HEALTHCARE LTD,0000469838,469838,380175.58
Department of Health,The Christie NHS Foundation Trust,19/06/2014,Drugs,Cancer Centre Services,BAXTER HEALTHCARE LTD,0000469037,469037,1023529.94
Department of Health,The Christie NHS Foundation Trust,19/06/2014,Drugs,Cancer Centre Services,BAXTER HEALTHCARE LTD,0000469031,469031,185947.86
Department of Health,The Christie NHS Foundation Trust,19/06/2014,Drugs,Cancer Centre Services,BAXTER HEALTHCARE LTD,0000468629,468629,287416.98
Department of Health,The Christie NHS Foundation Trust,19/06/2014,Drugs,Cancer Centre Services,BAXTER HEALTHCARE LTD,0000468148,468148,242750.4
Department of Health,The Christie NHS Foundation Trust,19/06/2014,Drugs,Cancer Centre Services,BAXTER HEALTHCARE LTD,0000469035,469035,159669.92
Department of Health,The Christie NHS Foundation Trust,19/06/2014,Drugs,Cancer Centre Services,BAXTER HEALTHCARE LTD,0000469020,469020,275550.9
Department of Health,The Christie NHS Foundation Trust,19/06/2014,Drugs,Cancer Centre Services,BAXTER HEALTHCARE LTD,0000468631,468631,344319.98
Department of Health,The Christie NHS Foundation Trust,19/06/2014,Drugs,Cancer Centre Services,BAXTER HEALTHCARE LTD,0000469029,469029,305341.18
Department of Health,The Christie NHS Foundation Trust,19/06/2014,Software Licenses,Capital,BYTES SOFTWARE SERVICES,0000469188,469188,40638.7
Department of Health,The Christie NHS Foundation Trust,19/06/2014,Energy,Estates & Facilities,DALKIA UTILITIES SERVICES PLC,0000469599,469599,207036.54
Department of Health,The Christie NHS Foundation Trust,12/06/2014,Energy,Estates & Facilities,DEPARTMENT OF ENGERY AND CLIMATE CHANGE,0000469941,469941,130852.8
Department of Health,The Christie NHS Foundation Trust,05/06/2014,Oncology Services - Apr,Networked Services,EAST CHESHIRE NHS TRUST,0000469186,469186,35988.25
Department of Health,The Christie NHS Foundation Trust,12/06/2014,Oncology Services - May,Networked Services,EAST CHESHIRE NHS TRUST,0000469184,469184,35988.25
Department of Health,The Christie NHS Foundation Trust,12/06/2014,Medical Equipment,Capital,ELEKTA ONCOLOGY SYSTEMS LTD,0000469936,469936,59952.24
Department of Health,The Christie NHS Foundation Trust,26/06/2014,Medical Equipment,Capital,ELEKTA ONCOLOGY SYSTEMS LTD,0000470116,470116,107987.45
Department of Health,The Christie NHS Foundation Trust,12/06/2014,Homecare Services,Cancer Centre Services,HEALTHCARE AT HOME LTD,0000468784,468784,36727.46
Department of Health,The Christie NHS Foundation Trust,12/06/2014,Homecare Services,Cancer Centre Services,HEALTHCARE AT HOME LTD,0000469053,469053,28318.56
Department of Health,The Christie NHS Foundation Trust,20/06/2014,Homecare Services,Cancer Centre Services,HEALTHCARE AT HOME LTD,0000470467,470467,39079.31
Department of Health,The Christie NHS Foundation Trust,05/06/2014,Homecare Services,Cancer Centre Services,HEALTHCARE AT HOME LTD,0000469542,469542,43751.23
Department of Health,The Christie NHS Foundation Trust,12/06/2014,IT Equipment,Capital,HEWLETT- PACKARD LTD,0000469899,469899,67148.67
Department of Health,The Christie NHS Foundation Trust,19/06/2014,YOU/HTU Development,Capital,INTERSERVE CONSTRUCTION LTD,0000468365,468365,845364.22
Department of Health,The Christie NHS Foundation Trust,19/06/2014,Rates 14/15,Estates & Facilities,M/CR CITY COUNCIL (RATES) DD,0000471500,471500,73156
Department of Health,The Christie NHS Foundation Trust,27/06/2014,Macmillan - May,Networked Services,MID CHESHIRE HOSPITALS NHS FT,0000468839,468839,45630.25
Department of Health,The Christie NHS Foundation Trust,19/06/2014,Drugs,Networked Services,MID CHESHIRE HOSPITALS NHS FT,0000468266,468266,33711.96
Department of Health,The Christie NHS Foundation Trust,12/06/2014,Blood Products,Cancer Networked Services,NHS BLOOD AND TRANSPLANT,0000468686,468686,163497.36
Department of Health,The Christie NHS Foundation Trust,19/06/2014,Accelerator Fund,Corporate Services,NHS CONFEDERATION ,0000461591,461591,30000
Department of Health,The Christie NHS Foundation Trust,27/06/2014,NHS Litigation (NHSLA),Finance & Business Development,NHS LITIGATION AUTHORITY,0000471499,471499,49586.2
Department of Health,The Christie NHS Foundation Trust,19/06/2014,Stock for all Wards & Departments,All Wards and Departments,NHS SUPPLY CHAIN,0000468873,468873,37216.97
Department of Health,The Christie NHS Foundation Trust,26/06/2014,Stock for all Wards & Departments,All Wards and Departments,NHS SUPPLY CHAIN,0000467863,467863,27716.14
Department of Health,The Christie NHS Foundation Trust,19/06/2014,Stock for all Wards & Departments,All Wards and Departments,NHS SUPPLY CHAIN,0000468671,468671,41943.67
Department of Health,The Christie NHS Foundation Trust,05/06/2014,Annual Maintenance Charge - Clinical Equipment,Networked Services,PHILIPS HEALTHCARE,0000469765,469765,39807.14
Department of Health,The Christie NHS Foundation Trust,19/06/2014,Patient Testing Service ,Networked Services,THE ANTHONY NOLAN BONE MARROW,0000468925,468925,33470
Department of Health,The Christie NHS Foundation Trust,19/06/2014,Education Centre Extension ,Capital,THOMAS BARNES & SONS PLC,0000468373,468373,68184.01
Department of Health,The Christie NHS Foundation Trust,05/06/2014,Anaesthetics SLA - May,Cancer Centre Services,UNI HOSP OF SOUTH MANCHESTER NHS FT,0000469738,469738,27148
Department of Health,The Christie NHS Foundation Trust,19/06/2014,Anaesthetics SLA - Feb,Cancer Centre Services,UNI HOSP OF SOUTH MANCHESTER NHS FT,0000462013,462013,33852
Department of Health,The Christie NHS Foundation Trust,19/06/2014,Anaesthetics SLA - Apr,Cancer Centre Services,UNI HOSP OF SOUTH MANCHESTER NHS FT,0000467318,467318,27148
Department of Health,The Christie NHS Foundation Trust,12/06/2014,Anaesthetics SLA - Apr,Cancer Centre Services,UNI HOSP OF SOUTH MANCHESTER NHS FT,0000467394,467394,35108
